bitfinex-derivatives/quotes_BNBF0:USTF0_20250302
["timestamp","ask_amount","ask_price","bid_price","bid_amount"]
[1740941788519,1.243,627.36,626.43,0.31926951]
[1740941792625,1.243,627.36,626.44,0.26244044]
[1740941792822,1.243,627.36,626.45,0.31925931]
[1740941793425,1.243,627.36,626.46,0.2624398]
[1740941793620,1.243,627.36,626.47,0.31924912]
[1740941793826,1.243,627.36,626.48,0.26244124]
[1740941794025,1.243,627.36,626.49,0.31923893]
[1740941794326,1.06,627.35,626.49,0.31923893]
[1740941798128,1.052,627.34,626.49,0.31923893]
[1740941800425,1.377,627.33,626.49,0.31923893]
[1740941801732,1.377,627.33,626.5,0.26239479]
[1740941801934,1.377,627.33,626.51,0.31922874]
[1740941802134,1.377,627.33,626.52,0.26239479]
[1740941802426,1.377,627.33,626.53,0.31921855]
[1740941804332,1.377,627.33,626.54,0.26238163]
[1740941804627,1.377,627.33,626.55,0.31920836]
[1740941804827,1.377,627.33,626.56,0.26238287]
[1740941805127,1.377,627.33,626.57,0.31919817]
[1740941805331,1.377,627.33,626.58,0.26238309]
[1740941805634,1.377,627.33,626.59,0.31918798]
[1740941806028,1.377,627.33,626.6,0.26239796]
[1740941806332,1.377,627.33,626.59,0.31918798]
[1740941808830,1.377,627.33,626.6,0.2623995]
[1740941809635,3.025,627.33,626.61,0.31917779]
[1740941809838,3.025,627.33,626.62,0.2623995]
[1740941810936,3.025,627.33,626.62,0.5815722]
[1740941811137,3.025,627.33,626.63,0.2623995]
[1740941811639,3.025,627.33,626.64,0.31916251]
[1740941811838,3.025,627.33,626.65,0.26237294]
[1740941812530,3.025,627.33,626.66,0.31915233]
[1740941813237,3.025,627.33,626.67,1.17647357]
[1740941813538,4.356,627.33,626.67,1.17647357]
[1740941816239,4.356,627.33,626.71,1.17647357]
[1740941816433,4.356,627.33,626.72,0.31912177]
[1740941817042,4.356,627.33,626.73,0.26234217]
[1740941817345,4.356,627.33,626.73,0.58145885]
[1740941817539,4.356,627.33,626.74,0.26234217]
[1740941817935,4.356,627.33,626.73,0.31911668]
[1740941818338,4.356,627.33,626.82,1.17647357]
[1740941819438,2.979,627.33,626.82,1.17647357]
[1740941820539,2.979,627.33,626.75,1.17647357]
[1740941823047,2.979,627.33,626.73,1.49559025]
[1740941824457,2.979,627.33,626.74,0.26234522]
[1740941824650,2.979,627.33,626.74,0.31911159]
[1740941824855,2.979,627.33,626.75,0.3191065]
[1740941825856,2.979,627.33,626.76,0.26234014]
[1740941826652,1.331,627.33,626.76,0.26234014]
[1740941827656,1.331,627.33,626.83,1.17647357]
[1740941828361,1.331,627.33,626.84,0.31906068]
[1740941830256,1.331,627.33,626.85,0.2622591]
[1740941830461,1.331,627.33,626.86,0.3190505]
[1740941830654,1.331,627.33,626.89,1.17647357]
[1740941830856,1.331,627.33,626.9,0.31903014]
[1740941833362,1.331,627.33,626.9,1.49550371]
[1740941835658,1.331,627.33,626.9,0.31903014]
[1740941841569,1.483,627.46,626.9,0.31903014]
[1740941841771,2.606,627.52,626.9,0.31903014]
[1740941842874,3.8,627.52,626.9,0.31903014]
[1740941844870,5.294,627.52,626.9,0.31903014]
[1740941847076,5.294,627.52,626.91,1.17647357]
[1740941847276,5.294,627.52,626.92,0.31901997]
[1740941859086,3.8,627.52,626.92,0.31901997]
[1740941861880,1.307,627.52,626.92,0.31901997]
[1740941867084,1.307,627.52,626.93,0.26216876]
[1740941868487,1.307,627.52,626.94,0.31900979]
[1740941868691,1.307,627.52,626.95,0.26216876]
[1740941869296,1.307,627.52,626.96,0.31899961]
[1740941869494,1.307,627.52,626.97,0.26216876]
[1740941869691,1.307,627.52,626.98,0.31898944]
[1740941869892,1.307,627.52,626.99,0.26210991]
[1740941871494,1.307,627.52,626.98,0.31898944]
[1740941871495,1.307,627.52,627.14,1.17647357]
[1740941874494,1.307,627.52,626.99,1.17647357]
[1740941874695,1.307,627.52,627.0,0.58114142]
[1740941874890,1.307,627.52,627.01,0.58113633]
[1740941875092,1.307,627.52,627.02,0.26216216]
[1740941875491,1.307,627.52,627.03,0.318964]
[1740941875692,1.307,627.52,627.04,0.26216216]
[1740941876293,1.307,627.52,627.05,0.31895383]
[1740941876493,1.307,627.52,627.06,0.26212647]
[1740941876897,1.307,627.52,627.05,0.31895383]
[1740941877199,1.307,627.52,627.06,0.2621286]
[1740941877597,1.307,627.52,627.07,0.31894365]
[1740941877997,1.307,627.52,627.08,0.26212387]
[1740941878999,1.307,627.52,627.09,0.31893348]
[1740941879199,1.307,627.52,627.1,0.26212387]
[1740941879902,1.307,627.52,627.11,0.26205881]
[1740941880095,1.307,627.52,627.1,0.26205881]
[1740941880496,1.307,627.52,627.11,0.31892331]
[1740941880696,1.307,627.52,627.12,0.26205881]
[1740941883704,1.307,627.52,627.11,0.31892331]
[1740941885006,1.307,627.52,627.15,1.17647357]
[1740941885208,1.307,627.52,627.16,0.26200187]
[1740941887706,1.307,627.52,627.11,1.49539688]
[1740941888009,1.307,627.52,627.12,0.26196163]
[1740941889806,1.307,627.52,627.13,0.31891314]
[1740941890011,1.307,627.52,627.14,0.26196163]
[1740941890315,1.307,627.52,627.2,1.17647357]
[1740941890507,1.307,627.52,627.21,0.26196163]
[1740941891007,2.376,627.74,627.21,0.26196163]
[1740941891205,2.376,627.74,627.22,0.26208313]
[1740941891408,2.376,627.74,627.21,0.26208313]
[1740941891607,2.376,627.74,627.22,0.26208313]
[1740941891808,2.376,627.74,627.21,0.26208313]
[1740941892009,2.376,627.74,627.22,0.26208313]
[1740941892213,2.376,627.74,627.21,0.26208313]
[1740941892513,2.376,627.74,627.22,0.26208313]
[1740941892913,2.376,627.74,627.23,0.26208313]
[1740941893116,2.376,627.74,627.16,0.26208313]
[1740941893314,2.376,627.74,627.17,0.26208313]
[1740941893508,2.376,627.74,627.15,0.31890297]
[1740941899620,0.29294699,627.73,627.15,0.31890297]
[1740941900215,0.29294699,627.73,626.66,1.66443467]
[1740941900216,0.29294699,627.73,626.92,1.17647357]
[1740941900414,1.094,627.74,626.92,1.17647357]
[1740941902715,2.627,627.76,626.92,1.17647357]
[1740941903119,2.627,627.76,626.62,1.66454745]
[1740941903314,2.627,627.76,626.63,0.31916761]
[1740941903515,1.002,627.75,626.64,0.26226759]
[1740941904020,1.002,627.75,626.66,0.31915233]
[1740941904223,1.002,627.75,626.67,0.26226759]
[1740941905420,1.002,627.75,626.77,1.17647357]
[1740941905616,1.002,627.75,626.78,0.26226759]
[1740941905817,1.002,627.75,626.8,0.31908104]
[1740941906123,1.121,627.74,626.81,0.26221996]
[1740941906421,1.121,627.74,626.83,0.31906577]
[1740941906721,1.121,627.74,626.84,0.26221996]
[1740941906922,1.121,627.74,626.85,0.31905559]
[1740941907120,1.121,627.74,626.86,0.26221996]
[1740941907321,1.121,627.74,626.88,0.31904032]
[1740941907621,1.121,627.74,626.89,0.26221996]
[1740941908523,1.121,627.74,626.9,0.31903014]
[1740941909419,1.286,627.73,626.9,0.31903014]
[1740941909624,2.598,627.73,626.9,0.31903014]
[1740941910424,2.598,627.73,626.91,0.26221116]
[1740941910621,2.598,627.73,626.92,0.31901997]
[1740941911025,2.598,627.73,626.93,0.26220381]
[1740941911325,2.598,627.73,626.94,0.31900979]
[1740941912727,2.598,627.73,626.95,0.26220201]
[1740941912922,2.598,627.73,626.96,0.31899961]
[1740941913126,2.598,627.73,626.97,0.26219897]
[1740941913326,2.598,627.73,626.98,0.31898944]
[1740941913527,2.598,627.73,626.99,0.26219897]
[1740941913724,2.598,627.73,627.0,0.31897926]
[1740941913926,2.598,627.73,627.01,0.26219897]
[1740941914329,2.598,627.73,627.02,0.31896909]
[1740941914529,2.598,627.73,627.03,0.26210512]
[1740941915023,2.598,627.73,627.04,0.31895891]
[1740941915228,2.598,627.73,627.05,0.26210512]
[1740941915427,2.598,627.73,627.06,0.31894874]
[1740941915727,2.598,627.73,627.07,0.26210512]
[1740941915929,2.598,627.73,627.08,0.31893857]
[1740941916129,2.598,627.73,627.09,0.26210512]
[1740941916428,2.598,627.73,627.1,0.3189284]
[1740941916628,2.598,627.73,627.11,0.26210512]
[1740941916825,2.598,627.73,627.12,0.31891822]
[1740941917023,2.598,627.73,627.13,0.26210512]
[1740941917427,2.598,627.73,627.14,0.31890805]
[1740941917628,2.598,627.73,627.15,0.26210512]
[1740941917829,2.598,627.73,627.16,0.26211521]
[1740941918029,2.598,627.73,627.15,0.26211521]
[1740941918224,2.598,627.73,627.16,0.58101309]
[1740941918529,2.598,627.73,627.17,0.58100801]
[1740941918729,2.598,627.73,627.18,0.26211521]
[1740941919421,2.598,627.73,627.17,0.3188928]
[1740941919629,2.598,627.73,627.19,0.31888263]
[1740941921729,1.286,627.73,627.19,0.31888263]
[1740941941144,1.286,627.73,627.2,0.26210894]
[1740941941844,1.286,627.73,627.22,1.17647357]
[1740941942347,1.286,627.73,627.23,0.2620799]
[1740941943046,1.286,627.73,627.24,0.31885721]
[1740941943247,1.286,627.73,627.25,0.2620799]
[1740941943650,1.286,627.73,627.26,0.31884704]
[1740941943850,1.286,627.73,627.27,0.2620799]
[1740941944049,1.286,627.73,627.28,0.31883688]
[1740941944249,1.286,627.73,627.29,0.2620799]
[1740941944849,1.286,627.73,627.37,1.17647357]
[1740941945150,1.286,627.73,627.38,0.2620799]
[1740941946253,1.286,627.73,627.39,0.31878098]
[1740941946447,1.286,627.73,627.4,0.2620799]
[1740941947048,1.286,627.73,627.39,0.31878098]
[1740941947447,1.286,627.73,627.4,0.26196879]
[1740941947653,1.286,627.73,627.39,0.31878098]
[1740941947850,1.286,627.73,627.4,0.26194739]
[1740941948055,1.286,627.73,627.59,1.17647357]
[1740941949554,1.286,627.73,627.6,0.26191957]
[1740941950648,1.286,627.73,627.41,1.17647357]
[1740941950851,1.286,627.73,627.42,0.26190292]
[1740941951847,1.286,627.73,627.43,0.31876065]
[1740941952052,1.286,627.73,627.44,0.26190292]
[1740941953556,1.286,627.73,627.43,0.31876065]
[1740941953955,1.286,627.73,627.44,0.26191876]
[1740941954152,1.286,627.73,627.45,0.31875049]
[1740941954756,1.286,627.73,627.46,0.26191514]
[1740941954954,1.286,627.73,627.47,0.31874033]
[1740941966266,1.277,627.87,627.47,0.31874033]
[1740941968169,3.294,628.09,627.47,0.31874033]
[1740941971270,4.696,628.09,627.47,0.31874033]
[1740941972268,5.677,628.09,627.47,0.31874033]
[1740941995183,5.677,628.09,627.27,1.17647357]
[1740941995482,0.981,628.09,627.27,1.17647357]
[1740941997382,0.981,628.09,627.05,1.17647357]
[1740941997583,0.981,628.09,627.07,0.31894365]
[1740941997783,0.981,628.09,627.08,0.26209406]
[1740941997984,0.981,628.09,627.09,0.31893348]
[1740941998782,4.078,628.08,627.09,0.31893348]
[1740942000284,4.078,628.08,627.13,1.17647357]
[1740942000586,4.078,628.08,627.14,0.26209209]
[1740942002388,4.078,628.08,627.13,1.17647357]
[1740942002389,4.078,628.08,627.15,0.31890297]
[1740942002583,4.078,628.08,627.16,0.26208005]
[1740942003291,4.078,628.08,627.33,1.17647357]
[1740942003587,4.078,628.08,627.34,0.26208005]
[1740942005883,4.078,628.08,627.35,0.26199475]
[1740942006084,4.078,628.08,627.5,1.17647357]
[1740942006482,4.078,628.08,627.51,0.26197648]
[1740942008590,4.078,628.08,627.53,1.17647357]
[1740942009787,4.078,628.08,627.54,0.2619708]
[1740942009991,4.078,628.08,627.53,1.17647357]
[1740942011290,4.078,628.08,627.54,0.2619806]
[1740942011686,4.078,628.08,627.55,0.3186997]
[1740942011991,3.14,628.08,627.56,0.2619806]
[1740942012191,3.14,628.08,627.57,0.31868954]
[1740942012587,3.14,628.08,627.58,0.26192807]
[1740942013492,3.14,628.08,627.59,0.31867939]
[1740942013694,3.14,628.08,627.6,1.43840164]
[1740942013893,3.14,628.08,627.61,0.26192807]
[1740942014287,3.14,628.08,627.62,0.31866415]
[1740942014491,3.14,628.08,627.63,0.26192807]
[1740942014891,3.14,628.08,627.62,0.31866415]
[1740942017893,2.17,628.08,627.62,0.31866415]
[1740942018696,0.85,628.08,627.62,0.31866415]
[1740942019797,0.981,628.09,627.62,0.31866415]
[1740942023094,0.86,628.25,627.62,0.31866415]
[1740942024399,0.86,628.25,627.63,0.26187796]
[1740942024796,0.86,628.25,627.62,0.31866415]
[1740942025698,0.86,628.25,627.63,0.26189015]
[1740942027299,0.86,628.25,627.64,0.318654]
[1740942030099,0.86,628.25,627.65,0.26186778]
[1740942030793,0.86,628.25,627.66,0.31864385]
[1740942030994,0.86,628.25,627.67,0.26186778]
[1740942031594,0.86,628.25,627.68,0.31863369]
[1740942031901,0.86,628.25,627.69,0.26186778]
[1740942033001,0.86,628.25,627.68,0.31863369]
[1740942033701,0.86,628.25,627.69,0.26189899]
[1740942035101,0.86,628.25,627.68,0.31863369]
[1740942035498,0.86,628.25,627.69,0.261859]
[1740942036906,0.86,628.25,627.7,0.31862354]
[1740942037205,0.86,628.25,627.71,0.261859]
[1740942037601,0.86,628.25,627.72,0.31861339]
[1740942037806,0.86,628.25,627.73,0.261859]
[1740942038106,0.86,628.25,627.74,0.31860324]
[1740942038305,0.86,628.25,627.77,1.17647357]
[1740942040404,0.86,628.25,627.74,0.31860324]
[1740942041202,1.15,628.65,627.74,0.31860324]
[1740942041502,0.29253221,628.64,627.74,0.31860324]
[1740942043409,0.29261533,628.63,627.62,1.17647357]
[1740942043708,0.29261533,628.62,627.62,1.17647357]
[1740942043903,0.29261533,628.61,627.62,1.17647357]
[1740942044111,0.29261533,628.64,627.62,1.17647357]
[1740942044303,3.02059247,628.6,627.62,1.17647357]
[1740942044506,0.29261533,628.59,627.62,1.17647357]
[1740942045209,0.29261533,628.59,627.37,1.17647357]
[1740942045510,0.29261533,628.59,627.38,0.26199253]
[1740942046009,1.358,628.6,627.37,1.17647357]
[1740942046308,1.358,628.6,627.38,0.31878606]
[1740942048209,1.196,628.59,627.38,0.31878606]
[1740942050012,0.29260177,628.58,627.39,0.26199101]
[1740942050210,0.29260177,628.58,627.4,0.3187759]
[1740942051206,0.29260177,628.58,627.41,0.26199833]
[1740942052109,1.53060177,628.58,627.41,0.26199833]
[1740942052311,0.29260177,628.57,627.41,0.26199833]
[1740942052511,0.29260177,628.57,627.4,0.3187759]
[1740942052914,1.238,628.58,627.4,0.3187759]
[1740942053214,0.29267826,628.57,627.4,0.3187759]
[1740942053914,1.66293012,628.56,627.4,0.3187759]
[1740942054115,0.29267826,628.55,627.4,0.3187759]
[1740942054611,1.66293012,628.56,627.4,0.3187759]
[1740942055214,1.238,628.58,627.4,0.3187759]
[1740942061221,0.29265191,628.57,627.4,0.3187759]
[1740942061826,0.29265191,628.57,627.41,0.26202642]
[1740942062123,0.29264032,628.56,627.4,0.3187759]
[1740942062322,0.29264032,628.55,627.41,0.26202646]
[1740942062523,0.29264032,628.57,627.41,0.26202646]
[1740942062820,0.29264032,628.56,627.41,0.26202646]
[1740942063025,1.66285066,628.56,627.41,0.26202646]
[1740942063226,0.29264032,628.55,627.41,0.26202646]
[1740942063627,0.29264641,628.54,627.42,0.26203497]
[1740942063829,0.29264641,628.53,627.4,0.3187759]
[1740942064028,0.29264641,628.52,627.41,0.26204111]
[1740942064225,0.29264641,628.55,627.41,0.26204111]
[1740942064422,0.29264641,628.54,627.41,0.26204111]
[1740942064625,0.29264641,628.53,627.41,0.26204111]
[1740942064824,0.29264641,628.55,627.41,0.26204111]
[1740942065027,0.29264641,628.54,627.41,0.26204111]
[1740942065328,0.29264641,628.53,627.4,0.3187759]
[1740942065521,0.29264641,628.55,627.4,0.3187759]
[1740942065726,0.29264641,628.54,627.4,0.3187759]
[1740942065923,0.29264641,628.53,627.4,0.3187759]
[1740942066126,0.29264641,628.52,627.4,0.3187759]
[1740942066322,0.29264641,628.51,627.4,0.3187759]
[1740942066521,0.29264641,628.5,627.4,0.3187759]
[1740942066723,0.29264641,628.55,627.4,0.3187759]
[1740942068324,1.66285066,628.56,627.4,0.3187759]
[1740942068529,0.29267008,628.54,627.4,0.3187759]
[1740942068726,0.29267008,628.53,627.4,0.3187759]
[1740942069032,0.29267008,628.52,627.4,0.3187759]
[1740942069228,0.29267008,628.51,627.4,0.3187759]
[1740942069429,0.29267008,628.5,627.4,0.3187759]
[1740942069729,0.964,628.49,627.4,0.3187759]
[1740942069930,0.29267008,628.48,627.4,0.3187759]
[1740942070530,1.032,628.47,627.4,0.3187759]
[1740942070726,0.29267008,628.46,627.4,0.3187759]
[1740942071630,0.29271221,628.45,627.4,0.3187759]
[1740942071832,0.29271221,628.46,627.4,0.3187759]
[1740942072031,0.29271221,628.45,627.4,0.3187759]
[1740942072226,0.29271221,628.44,627.4,0.3187759]
[1740942072424,0.29271221,628.43,627.4,0.3187759]
[1740942072624,1.032,628.47,627.4,0.3187759]
[1740942072625,0.29271221,628.42,627.4,0.3187759]
[1740942072830,0.29271221,628.41,627.4,0.3187759]
[1740942073031,0.29266927,628.46,627.4,0.3187759]
[1740942073227,0.29266927,628.4,627.4,0.3187759]
[1740942073429,1.032,628.47,627.4,0.3187759]
[1740942073628,0.29267592,628.46,627.4,0.3187759]
[1740942076234,0.95,628.45,627.4,0.3187759]
[1740942076435,0.29267592,628.44,627.4,0.3187759]
[1740942076636,0.95,628.45,627.4,0.3187759]
[1740942078142,1.66320829,628.44,627.4,0.3187759]
[1740942079136,0.29275278,628.43,627.02,1.17647357]
[1740942079341,0.29275278,628.43,627.03,0.318964]
[1740942079342,0.6110062,628.43,627.03,0.318964]
[1740942079542,0.31825342,628.43,627.03,0.318964]
[1740942080744,0.29279071,628.42,627.03,0.318964]
[1740942080943,1.95639654,628.42,627.03,0.318964]
[1740942081141,0.29279071,628.41,627.03,0.318964]
[1740942082843,0.31826861,628.4,627.03,0.318964]
[1740942084644,0.31826861,628.4,627.04,0.26209388]
[1740942084943,0.31826861,628.4,627.03,0.318964]
[1740942085444,0.29271272,628.39,627.04,0.26210009]
[1740942085744,0.29271272,628.39,627.06,0.31894874]
[1740942086044,0.2927099,628.38,627.07,0.26209733]
[1740942086240,0.2927099,628.37,627.07,0.26209733]
[1740942086544,0.2927099,628.36,627.08,0.31893857]
[1740942086745,0.2927099,628.35,627.09,0.26209733]
[1740942087045,0.2927099,628.34,627.1,0.3189284]
[1740942087246,0.2927099,628.39,627.11,0.26209733]
[1740942087439,0.31826861,628.4,627.2,1.17647357]
[1740942087645,0.29272247,628.39,627.2,1.17647357]
[1740942087846,0.29272247,628.39,627.21,0.31887246]
[1740942089741,0.29272247,628.39,627.21,1.49534603]
[1740942091541,1.185,628.38,627.21,1.49534603]
[1740942091746,0.29272247,628.37,627.21,0.31887246]
[1740942092247,1.185,628.38,627.21,0.31887246]
[1740942092442,0.29271236,628.37,627.21,0.31887246]
[1740942092845,1.185,628.36,627.21,0.31887246]
[1740942093042,0.29271236,628.35,627.21,0.31887246]
[1740942093946,0.29273111,628.34,627.21,0.31887246]
[1740942094143,0.29273111,628.33,627.21,0.31887246]
[1740942094343,0.29273111,628.32,627.21,0.31887246]
[1740942094546,0.29273111,628.31,627.21,0.31887246]
[1740942094741,0.29273111,628.3,627.21,0.31887246]
[1740942094948,0.29273111,628.29,627.21,0.31887246]
[1740942095248,0.29273111,628.28,627.21,0.31887246]
[1740942095448,0.29273111,628.35,627.21,0.31887246]
[1740942095648,0.29273111,628.34,627.21,0.31887246]
[1740942095849,1.66340041,628.34,627.21,0.31887246]
[1740942096051,0.29273111,628.33,627.21,0.31887246]
[1740942097345,0.61103518,628.33,627.21,0.31887246]
[1740942097551,0.29273111,628.32,627.21,0.31887246]
[1740942097752,0.29273111,628.32,627.22,1.17647357]
[1740942098147,0.61104025,628.32,627.22,1.17647357]
[1740942098347,0.29273111,628.31,627.22,1.17647357]
[1740942098953,1.95629959,628.3,627.22,1.17647357]
[1740942099152,0.29278653,628.29,627.22,1.17647357]
[1740942100555,0.29278653,628.29,627.21,0.31887246]
[1740942101354,1.233,628.28,627.21,0.31887246]
[1740942101554,0.29276358,628.27,627.21,0.31887246]
[1740942102055,2.543,628.28,627.21,0.31887246]
[1740942102257,0.29276658,628.27,627.21,0.31887246]
[1740942103852,2.543,628.28,627.21,0.31887246]
[1740942104751,2.543,628.28,627.22,1.17647357]
[1740942107754,2.543,628.28,627.21,0.31887246]
[1740942108154,1.66389086,628.27,627.21,0.31887246]
[1740942109449,1.163,628.26,627.21,0.31887246]
[1740942112154,0.2928122,628.25,627.21,0.31887246]
[1740942112354,0.2928122,628.25,626.74,1.17647357]
[1740942112554,0.31834967,628.24,626.75,0.3191065]
[1740942112952,0.29293336,628.23,626.75,0.3191065]
[1740942113259,0.31835981,628.22,626.75,0.3191065]
[1740942113558,0.29293336,628.21,626.75,0.3191065]
[1740942113758,0.31836994,628.2,626.75,0.3191065]
[1740942113959,0.29293336,628.19,626.75,0.3191065]
[1740942115156,0.31838008,628.18,626.75,0.3191065]
[1740942115359,0.29293336,628.17,626.75,0.3191065]
[1740942117061,1.66454082,628.16,626.75,0.3191065]
[1740942117261,0.29293336,628.15,626.75,0.3191065]
[1740942117461,0.29293336,628.14,626.75,0.3191065]
[1740942117659,0.31841049,628.12,626.75,0.3191065]
[1740942117860,0.29293336,628.11,626.75,0.3191065]
[1740942118057,0.29293336,628.1,626.75,0.3191065]
[1740942118257,0.29293336,628.09,626.75,0.3191065]
[1740942118560,0.29293336,628.08,626.75,0.3191065]
[1740942118755,0.29293336,628.07,626.75,0.3191065]
[1740942118956,0.29293336,628.06,626.75,0.3191065]
[1740942119156,0.61137934,628.05,626.75,0.3191065]
[1740942119354,0.29293336,628.04,626.75,0.3191065]
[1740942119860,0.31844598,628.05,626.75,0.3191065]
[1740942120056,1.66453418,628.03,626.75,0.3191065]
[1740942120362,0.29293557,628.02,626.76,0.2623157]
[1740942120562,0.29293557,628.02,626.77,0.31909631]
[1740942120765,0.29293557,628.02,626.78,0.2623157]
[1740942120964,0.29293557,628.04,626.78,0.2623157]
[1740942121161,0.29293557,628.03,626.78,0.2623157]
[1740942121357,0.29293557,628.02,626.78,0.2623157]
[1740942121658,0.29293557,628.01,626.78,0.2623157]
[1740942121863,1.015,628.01,626.78,0.2623157]
[1740942122168,0.29293557,628.0,626.79,0.31908613]
[1740942122361,0.29293557,628.0,626.8,0.2623157]
[1740942122562,0.29293557,628.0,626.81,0.31907595]
[1740942122761,0.29293557,628.0,626.82,0.2623157]
[1740942122961,0.29293557,628.0,626.83,0.31906577]
[1740942123165,0.29293557,628.0,626.84,0.2623157]
[1740942123365,0.29293557,628.0,626.85,0.31905559]
[1740942123563,0.29293557,628.0,626.86,0.2623157]
[1740942124668,0.29293557,628.0,626.87,0.31904541]
[1740942125065,0.29293557,628.0,626.88,0.2623157]
[1740942125267,0.29293557,628.0,626.89,0.31903523]
[1740942125469,0.29293557,628.0,626.9,0.2623157]
[1740942125664,0.29293557,628.0,626.89,0.31903523]
[1740942125863,0.29293557,628.0,626.9,0.26224941]
[1740942126064,0.29293557,628.0,626.89,0.31903523]
[1740942127170,0.29293557,628.0,626.9,0.26225048]
[1740942127765,1.015,628.01,626.91,0.31902505]
[1740942127962,0.29285899,628.0,626.92,0.26224393]
[1740942128368,0.29285899,628.0,626.93,0.31901488]
[1740942130069,1.015,628.01,626.93,0.31901488]
[1740942130070,1.015,628.01,626.94,0.26219953]
[1740942130370,1.015,628.01,626.95,0.3190047]
[1740942130669,1.015,628.01,626.96,0.26219953]
[1740942131371,1.015,628.01,626.97,0.31899452]
[1740942131569,1.015,628.01,626.98,0.26219953]
[1740942131869,1.015,628.01,626.99,0.31898435]
[1740942132070,1.015,628.01,627.0,0.26219953]
[1740942132667,1.015,628.01,627.01,0.31897417]
[1740942132969,1.3,628.0,627.02,0.26219953]
[1740942133169,2.241,628.0,627.02,0.26219953]
[1740942133370,0.29281357,627.99,627.02,0.26219953]
[1740942133567,0.29281357,627.99,627.03,0.318964]
[1740942133771,2.241,628.0,627.03,0.318964]
[1740942135067,1.432,627.99,627.03,0.318964]
[1740942141373,1.432,627.99,627.04,0.26213541]
[1740942142174,1.432,627.99,627.05,0.31895383]
[1740942142375,1.432,627.99,627.06,0.26213541]
[1740942142574,1.432,627.99,627.07,0.31894365]
[1740942142769,1.432,627.99,627.08,0.26213541]
[1740942142972,1.432,627.99,627.09,0.31893348]
[1740942143174,1.432,627.99,627.1,0.26213541]
[1740942143374,1.432,627.99,627.11,0.31892331]
[1740942143575,1.432,627.99,627.12,0.26213541]
[1740942143774,1.432,627.99,627.13,0.31891314]
[1740942144075,1.432,627.99,627.14,0.26213541]
[1740942144575,1.432,627.99,627.15,0.31890297]
[1740942144778,1.432,627.99,627.16,0.26213541]
[1740942144977,1.432,627.99,627.17,0.3188928]
[1740942145275,1.432,627.99,627.18,0.26213541]
[1740942145477,1.432,627.99,627.19,0.31888263]
[1740942148980,1.075,627.98,627.19,0.31888263]
[1740942149888,1.075,627.98,627.2,0.26208764]
[1740942150090,1.075,627.98,627.21,0.31887246]
[1740942150388,1.075,627.98,627.22,0.26208764]
[1740942150990,1.075,627.98,627.22,0.58095502]
[1740942151188,1.075,627.98,627.23,0.26208764]
[1740942151391,1.075,627.98,627.22,0.31886738]
[1740942152391,1.236,627.97,627.22,0.31886738]
[1740942160995,0.29283616,627.96,627.22,0.31886738]
[1740942161397,1.236,627.97,627.22,0.31886738]
[1740942161597,0.29287965,627.96,627.22,0.31886738]
[1740942163092,1.236,627.97,627.22,0.31886738]
[1740942163298,0.29285023,627.96,627.22,0.31886738]
[1740942163497,1.236,627.97,627.22,0.31886738]
[1740942166401,1.617,627.96,627.22,0.31886738]
[1740942168304,1.117,627.95,627.22,0.31886738]
[1740942174811,1.117,627.95,627.08,1.17647357]
[1740942175512,1.117,627.95,627.06,1.17647357]
[1740942177407,2.044,627.95,627.06,1.17647357]
[1740942178115,2.044,627.95,627.07,1.17647357]
[1740942180814,2.044,627.95,626.94,1.17647357]
[1740942182625,3.229,627.95,626.94,1.17647357]
[1740942183324,3.229,627.95,626.92,1.66379805]
[1740942183325,3.229,627.95,627.0,1.17647357]
[1740942185828,3.229,627.95,627.02,1.17647357]
[1740942187527,3.229,627.95,627.03,0.26219917]
[1740942187721,0.29281536,627.94,627.03,0.26219917]
[1740942187932,3.229,627.95,627.02,1.17647357]
[1740942188127,2.112,627.95,627.02,1.17647357]
[1740942188327,2.112,627.95,627.06,1.17647357]
[1740942189931,0.29286877,627.94,627.06,1.17647357]
[1740942190426,1.46086877,627.94,627.06,1.17647357]
[1740942190626,0.29286877,627.93,627.06,1.17647357]